bitfinex-derivatives/quotes_BTCF0:USTF0_20260118
["timestamp","ask_amount","ask_price","bid_price","bid_amount"]
[1768771264355,0.11335701,95385.0,95372.0,0.0944]
[1768771264356,0.11335701,95385.0,95373.0,0.010488]
[1768771264758,0.11335701,95385.0,95374.0,0.010488]
[1768771265056,0.11335701,95385.0,95375.0,0.010488]
[1768771265456,0.11335701,95385.0,95374.0,0.010488]
[1768771265961,0.11335701,95385.0,95376.0,0.010488]
[1768771266163,0.11335701,95385.0,95375.0,0.010488]
[1768771266661,0.11335701,95385.0,95372.0,0.104888]
[1768771266852,0.11335701,95385.0,95373.0,0.010488]
[1768771267459,0.11335701,95385.0,95372.0,0.0944]
[1768771267757,0.11335701,95385.0,95374.0,0.010488]
[1768771268059,0.11335701,95385.0,95373.0,0.010488]
[1768771269261,0.11335701,95385.0,95374.0,0.010488]
[1768771269460,0.11335701,95385.0,95373.0,0.010488]
[1768771270660,0.11335701,95385.0,95372.0,0.0944]
[1768771270854,0.11335701,95385.0,95372.0,0.104888]
[1768771271055,0.11335701,95385.0,95373.0,0.010488]
[1768771271257,0.10900848,95389.0,95374.0,0.010488]
[1768771271458,0.10900848,95393.0,95375.0,0.010488]
[1768771272159,0.10900848,95392.0,95376.0,0.010488]
[1768771272563,0.19930975,95392.0,95376.0,0.010488]
[1768771272864,0.19930975,95391.0,95376.0,0.010488]
[1768771273158,0.10900848,95390.0,95376.0,0.010488]
[1768771273365,0.19930975,95390.0,95374.0,0.010488]
[1768771273663,0.10900848,95389.0,95374.0,0.010488]
[1768771274866,0.10900848,95389.0,95375.0,0.010488]
[1768771275767,0.10900848,95389.0,95376.0,0.010488]
[1768771277073,0.10900848,95389.0,95378.0,0.010488]
[1768771277270,0.10900848,95389.0,95372.0,0.104888]
[1768771277465,0.10900848,95389.0,95373.0,0.010488]
[1768771277870,0.10900848,95389.0,95379.0,0.010488]
[1768771278061,0.10900848,95389.0,95374.0,0.010488]
[1768771278470,0.10900848,95389.0,95378.0,0.010488]
[1768771278673,0.10900848,95389.0,95372.0,0.0944]
[1768771279472,0.10900848,95389.0,95376.0,0.010488]
[1768771279777,0.10900848,95389.0,95377.0,0.010488]
[1768771283979,0.10900848,95389.0,95372.0,0.0944]
[1768771284382,0.10900848,95389.0,95375.0,0.010488]
[1768771286476,0.10900848,95389.0,95376.0,0.010488]
[1768771286682,0.11292206,95387.0,95375.0,0.010488]
[1768771287382,0.11292206,95387.0,95374.0,0.010488]
[1768771287581,0.11292206,95387.0,95373.0,0.010488]
[1768771287782,0.11292206,95387.0,95374.0,0.010488]
[1768771288683,0.11292206,95387.0,95372.0,0.0944]
[1768771288982,0.11292206,95387.0,95376.0,0.010488]
[1768771289685,0.11292206,95387.0,95377.0,0.010488]
[1768771291085,0.11292206,95387.0,95378.0,0.010488]
[1768771291786,0.11292206,95387.0,95379.0,0.010488]
[1768771292485,0.11292206,95387.0,95374.0,0.010488]
[1768771292684,0.11292206,95387.0,95373.0,0.010488]
[1768771292883,0.11292206,95387.0,95380.0,0.010487]
[1768771293590,0.11292206,95387.0,95379.0,0.010488]
[1768771293787,0.11292206,95387.0,95375.0,0.010488]
[1768771293988,0.11292206,95387.0,95380.0,0.010488]
[1768771294588,0.11292206,95387.0,95379.0,0.010488]
[1768771295591,0.11292206,95387.0,95377.0,0.010488]
[1768771296091,0.11292206,95387.0,95378.0,0.010488]
[1768771296486,0.11292206,95387.0,95377.0,0.010488]
[1768771296991,0.11292206,95387.0,95378.0,0.010488]
[1768771297191,0.11292206,95387.0,95375.0,0.010488]
[1768771297390,0.11292206,95387.0,95372.0,0.0944]
[1768771297590,0.11292206,95387.0,95376.0,0.010488]
[1768771297800,0.11292206,95387.0,95372.0,0.104888]
[1768771297994,0.11292206,95387.0,95376.0,0.010488]
[1768771298292,0.11292206,95387.0,95372.0,0.0944]
[1768771298493,0.11292206,95387.0,95375.0,0.010488]
[1768771299195,0.11292206,95387.0,95372.0,0.0944]
[1768771299592,0.11292206,95387.0,95375.0,0.010488]
[1768771299785,0.11292206,95387.0,95376.0,0.010488]
[1768771299982,0.11292206,95387.0,95377.0,0.010488]
[1768771300388,0.11292206,95387.0,95372.0,0.0944]
[1768771300588,0.11292206,95387.0,95377.0,0.010488]
[1768771301587,0.11292206,95387.0,95378.0,0.010488]
[1768771302397,0.11292206,95387.0,95375.0,0.010488]
[1768771302598,0.11292206,95387.0,95373.0,0.010488]
[1768771303599,0.11292206,95387.0,95381.0,0.010487]
[1768771304703,0.11292206,95387.0,95380.0,0.010488]
[1768771305304,0.11292206,95387.0,95381.0,0.010487]
[1768771306705,0.11292206,95387.0,95380.0,0.010488]
[1768771306898,0.11292206,95387.0,95379.0,0.010488]
[1768771307196,0.11292206,95387.0,95376.0,0.010488]
[1768771307402,0.11292206,95387.0,95380.0,0.010488]
[1768771308999,0.11292206,95387.0,95372.0,0.104888]
[1768771309208,0.11292206,95387.0,95380.0,0.010487]
[1768771314118,0.11292206,95387.0,95381.0,0.010487]
[1768771319719,0.11292206,95387.0,95374.0,0.0944]
[1768771319920,0.11292206,95387.0,95379.0,0.010488]
[1768771320215,0.11292206,95387.0,95381.0,0.010487]
[1768771321022,0.11292206,95387.0,95382.0,0.010487]
[1768771321222,0.11292206,95387.0,95383.0,0.010487]
[1768771321622,0.21261705,95387.0,95383.0,0.010487]
[1768771321820,0.21261705,95387.0,95376.0,0.010488]
[1768771322222,0.11336768,95386.0,95376.0,0.010488]
[1768771322428,0.11336768,95386.0,95378.0,0.010488]
[1768771323108,0.11336768,95386.0,95375.0,0.010488]
[1768771323313,0.11336768,95386.0,95378.0,0.010488]
[1768771325028,0.11336768,95386.0,95375.0,0.010488]
[1768771326228,0.11336768,95386.0,95379.0,0.010488]
[1768771326733,0.11336768,95386.0,95377.0,0.010488]
[1768771327028,0.11336768,95386.0,95374.0,0.0944]
[1768771327326,0.11336768,95386.0,95377.0,0.010488]
[1768771327631,0.11336768,95386.0,95374.0,0.0944]
[1768771327823,0.11336768,95385.0,95374.0,0.104888]
[1768771328126,0.11336768,95385.0,95374.0,0.0944]
[1768771328327,0.11336768,95385.0,95376.0,0.010488]
[1768771330030,0.11336768,95385.0,95375.0,0.010488]
[1768771330431,0.11336768,95385.0,95374.0,0.0944]
[1768771330432,0.11336768,95385.0,95374.0,0.104888]
[1768771332632,0.11336768,95385.0,95374.0,0.0944]
[1768771332834,0.11336768,95385.0,95376.0,0.010488]
[1768771333932,0.11336768,95385.0,95374.0,0.0944]
[1768771334733,0.11336768,95385.0,95377.0,0.010488]
[1768771337134,0.11336768,95385.0,95375.0,0.010488]
[1768771337431,0.11336768,95385.0,95376.0,0.010488]
[1768771339136,0.11336768,95385.0,95378.0,0.010488]
[1768771339338,0.11336768,95385.0,95377.0,0.010488]
[1768771340130,0.11336768,95385.0,95376.0,0.010488]
[1768771340637,0.11336768,95385.0,95374.0,0.0944]
[1768771340937,0.11336768,95385.0,95376.0,0.010488]
[1768771341140,0.11336768,95385.0,95377.0,0.010488]
[1768771341524,0.11336768,95385.0,95374.0,0.0944]
[1768771341825,0.11336768,95385.0,95376.0,0.010488]
[1768771344340,0.11336768,95385.0,95374.0,0.0944]
[1768771344539,0.11336768,95385.0,95374.0,0.104888]
[1768771344839,0.11336768,95385.0,95375.0,0.010488]
[1768771345542,0.11336768,95385.0,95374.0,0.104888]
[1768771345858,0.11336768,95385.0,95374.0,0.0944]
[1768771348136,0.20807974,95383.0,95369.0,0.01348584]
[1768771348448,0.09833774,95379.0,95368.0,0.0944]
[1768771348738,0.09833774,95379.0,95365.0,0.10484433]
[1768771349137,0.09833774,95379.0,95363.0,0.0944]
[1768771349442,0.09833774,95379.0,95364.0,0.10485257]
[1768771349637,0.09833774,95379.0,95364.0,0.11616439]
[1768771350549,0.04674032,95378.0,95356.0,0.09442263]
[1768771350741,0.04674032,95378.0,95360.0,0.0944]
[1768771351343,0.04674032,95378.0,95353.0,0.10579498]
[1768771351640,0.04674032,95378.0,95352.0,0.0944]
[1768771351845,0.04674032,95378.0,95352.0,0.104891]
[1768771352054,0.010489,95369.0,95352.0,0.0944]
[1768771352242,0.010489,95369.0,95353.0,0.01049]
[1768771352552,0.01049,95362.0,95353.0,0.11535027]
[1768771353448,0.01049,95361.0,95353.0,0.10486027]
[1768771354552,0.01049,95360.0,95353.0,0.10486027]
[1768771354752,0.010489,95369.0,95353.0,0.11611892]
[1768771355245,0.0431779,95370.0,95353.0,0.01125865]
[1768771355454,0.0431779,95370.0,95350.0,0.09449199]
[1768771356249,0.01049,95359.0,95351.0,0.010491]
[1768771356453,0.0431779,95370.0,95350.0,0.09449199]
[1768771356649,0.01049,95358.0,95350.0,0.09449199]
[1768771356850,0.01049,95357.0,95350.0,0.09449199]
[1768771357146,0.010489,95363.0,95350.0,0.09449199]
[1768771357854,0.01049,95362.0,95350.0,0.09449199]
[1768771358057,0.01049,95358.0,95350.0,0.1158219]
[1768771358756,0.01049,95362.0,95351.0,0.010491]
[1768771360157,0.0431779,95370.0,95351.0,0.010491]
[1768771360355,0.0431779,95370.0,95354.0,0.01049]
[1768771361559,0.0431779,95370.0,95355.0,0.01049]
[1768771363853,0.0944,95376.0,95354.0,0.09447204]
[1768771364059,0.0944,95376.0,95356.0,0.09447204]
[1768771364660,0.0944,95376.0,95358.0,0.01049]
[1768771365157,0.0944,95376.0,95356.0,0.10496204]
[1768771365562,0.0944,95376.0,95358.0,0.01049]
[1768771365759,0.0944,95376.0,95357.0,0.01049]
[1768771371067,0.0944,95375.0,95357.0,0.01049]
[1768771373070,0.0944,95375.0,95358.0,0.01049]
[1768771374959,0.0944,95375.0,95359.0,0.01049]
[1768771377972,0.0944,95375.0,95356.0,0.10496204]
[1768771379366,0.0944,95375.0,95358.0,0.01049]
[1768771379868,0.0944,95375.0,95359.0,0.01049]
[1768771380666,0.0944,95375.0,95357.0,0.01049]
[1768771382279,0.0944,95375.0,95359.0,0.01049]
[1768771383775,0.0944,95375.0,95360.0,0.01049]
[1768771384082,0.0944,95375.0,95356.0,0.09447204]
[1768771384479,0.0944,95375.0,95358.0,0.01049]
[1768771385079,0.0944,95375.0,95357.0,0.01049]
[1768771385479,0.0944,95375.0,95358.0,0.01049]
[1768771385979,0.0944,95375.0,95356.0,0.09447204]
[1768771386683,0.0944,95375.0,95357.0,0.01049]
[1768771387885,0.0944,95375.0,95358.0,0.01049]
[1768771388384,0.0944,95375.0,95357.0,0.01049]
[1768771391085,0.0944,95375.0,95356.0,0.10496204]
[1768771393880,0.0944,95375.0,95357.0,0.01049]
[1768771394085,0.0944,95375.0,95356.0,0.09447204]
[1768771394286,0.0944,95375.0,95356.0,0.10496204]
[1768771396190,0.0944,95375.0,95357.0,0.01049]
[1768771398788,0.0944,95375.0,95356.0,0.10496204]
[1768771399893,0.0944,95375.0,95356.0,0.09447204]
[1768771405398,0.0944,95375.0,95358.0,0.01049]
[1768771407200,0.0944,95375.0,95356.0,0.09447204]
[1768771407700,0.0944,95375.0,95356.0,0.10496204]
[1768771408998,0.0944,95375.0,95357.0,0.01049]
[1768771410396,0.0944,95375.0,95356.0,0.09447204]
[1768771410596,0.0944,95375.0,95356.0,0.10496204]
[1768771411301,0.0944,95375.0,95356.0,0.09447204]
[1768771411902,0.0944,95375.0,95356.0,0.10496204]
[1768771412396,0.0944,95375.0,95357.0,0.01049]
[1768771412601,0.0944,95375.0,95357.0,0.10863263]
[1768771414201,0.0944,95375.0,95358.0,0.01049]
[1768771415103,0.0944,95375.0,95357.0,0.09814263]
[1768771415401,0.0944,95375.0,95359.0,0.01049]
[1768771416097,0.0944,95375.0,95358.0,0.09814263]
[1768771416303,0.0944,95375.0,95360.0,0.01049]
[1768771417297,0.0944,95375.0,95359.0,0.01049]
[1768771418504,0.0944,95375.0,95358.0,0.09814263]
[1768771418505,0.0944,95375.0,95361.0,0.01049]
[1768771418700,0.0944,95375.0,95362.0,0.01049]
[1768771419202,0.0944,95375.0,95360.0,0.01049]
[1768771419700,0.0944,95375.0,95361.0,0.01049]
[1768771422804,0.0944,95375.0,95360.0,0.01049]
[1768771423901,0.0944,95375.0,95361.0,0.01049]
[1768771430207,0.0944,95375.0,95358.0,0.09814263]
[1768771430404,0.03746521,95395.0,95370.0,0.09651427]
[1768771430709,0.0944,95382.0,95371.0,0.09651427]
[1768771431011,0.10464711,95381.0,95366.0,0.09651427]
[1768771431206,0.10464711,95381.0,95368.0,0.010489]
[1768771431409,0.10464711,95381.0,95367.0,0.010489]
[1768771432911,0.10464711,95381.0,95366.0,0.09651427]
[1768771433997,0.10464711,95380.0,95366.0,0.09651427]
[1768771441610,0.10464711,95380.0,95361.0,0.18915839]
[1768771441910,0.10464711,95380.0,95362.0,0.10485147]
[1768771442817,0.10464711,95380.0,95362.0,0.21009886]
[1768771443018,0.10464711,95380.0,95363.0,0.09475839]
[1768771451625,0.0944,95385.0,95363.0,0.09475839]
[1768771451820,0.10464711,95380.0,95363.0,0.09475839]
[1768771458230,0.0944,95385.0,95364.0,0.09475839]
[1768771458418,0.10464711,95380.0,95364.0,0.09475839]
[1768771468938,0.0944,95385.0,95364.0,0.09475839]
[1768771473842,0.0944,95385.0,95364.0,0.20467816]
[1768771474048,0.0944,95385.0,95365.0,0.09755968]
[1768771476042,0.0944,95385.0,95365.0,0.20747945]
[1768771476443,0.0944,95385.0,95366.0,0.09755968]
[1768771478644,0.0944,95385.0,95366.0,0.21265391]
[1768771479045,0.0944,95385.0,95367.0,0.21215419]
[1768771479239,0.0944,95385.0,95368.0,0.09705996]
[1768771487751,0.0944,95385.0,95368.0,0.21215419]
[1768771487950,0.0944,95385.0,95369.0,0.09705996]
[1768771490546,0.0944,95385.0,95369.0,0.21215419]
[1768771490747,0.0944,95385.0,95370.0,0.09705996]
[1768771493443,0.0944,95385.0,95370.0,0.21343894]
[1768771493839,0.0944,95385.0,95371.0,0.0976881]
[1768771496750,0.0944,95385.0,95372.0,0.0976881]
[1768771499162,0.0944,95385.0,95372.0,0.21406708]
[1768771499362,0.0944,95385.0,95373.0,0.0976881]
[1768771499760,0.0944,95385.0,95374.0,0.0976881]
[1768771502964,0.0944,95385.0,95368.0,0.0976881]
[1768771503168,0.0944,95385.0,95368.0,0.21406708]
[1768771503358,0.0944,95385.0,95369.0,0.0976881]
[1768771504270,0.0944,95385.0,95369.0,0.21406708]
[1768771504460,0.0944,95385.0,95371.0,0.21406708]
[1768771505166,0.0944,95385.0,95372.0,0.0976881]
[1768771506364,0.10463168,95382.0,95356.0,0.11637898]
[1768771507966,0.10563168,95382.0,95356.0,0.11637898]
[1768771508366,0.10563168,95382.0,95357.0,0.0976881]
[1768771508971,0.10563168,95382.0,95359.0,0.0976881]
[1768771509167,0.10563168,95382.0,95361.0,0.0976881]
[1768771509370,0.10563168,95382.0,95362.0,0.0976881]
[1768771509566,0.10563168,95382.0,95362.0,0.0944291]
[1768771510669,0.001,95382.0,95362.0,0.0944291]
[1768771511071,0.001,95382.0,95362.0,0.21080808]
[1768771511879,0.001,95382.0,95363.0,0.0976881]
[1768771512867,0.09326086,95382.0,95358.0,0.11637898]
[1768771513068,0.09326086,95382.0,95358.0,0.21406708]
[1768771513269,0.09326086,95382.0,95360.0,0.21406708]
[1768771513470,0.09326086,95382.0,95361.0,0.0976881]
[1768771513670,0.09326086,95382.0,95361.0,0.21406708]
[1768771514382,0.09226086,95382.0,95361.0,0.21406708]
[1768771514568,0.02517246,95381.0,95361.0,0.21406708]
[1768771514773,0.12980414,95380.0,95362.0,0.0976881]
[1768771514975,0.09326086,95382.0,95362.0,0.0976881]
[1768771515174,0.02521011,95381.0,95362.0,0.0976881]
[1768771515371,0.02521011,95380.0,95362.0,0.0976881]
[1768771515576,0.09326086,95382.0,95362.0,0.0976881]
[1768771515779,0.02520753,95381.0,95362.0,0.0976881]
[1768771515975,0.02520753,95380.0,95362.0,0.21406708]
[1768771516181,0.09326086,95382.0,95362.0,0.21406708]
[1768771516374,0.02520734,95381.0,95364.0,0.0976881]
[1768771516572,0.001,95382.0,95364.0,0.0976881]
[1768771516884,0.02520597,95381.0,95365.0,0.0976881]
[1768771517071,0.001,95382.0,95366.0,0.11637898]
[1768771517272,0.02520587,95381.0,95366.0,0.21406708]
[1768771517582,0.04365412,95384.0,95367.0,0.0976881]
[1768771517781,0.02520512,95383.0,95368.0,0.21406708]
[1768771517981,0.02520512,95382.0,95368.0,0.21406708]
[1768771518181,0.02520512,95381.0,95368.0,0.21406708]
[1768771518378,0.04382831,95384.0,95368.0,0.21406708]
[1768771518587,0.02520434,95383.0,95368.0,0.21406708]
[1768771518777,0.00230647,95384.0,95368.0,0.21406708]
[1768771518778,0.02520434,95382.0,95368.0,0.21406708]
[1768771519084,0.00230647,95384.0,95368.0,0.21406708]
[1768771519286,0.02508072,95383.0,95368.0,0.21406708]
[1768771519487,0.02508072,95382.0,95368.0,0.21406708]
[1768771519677,0.04382831,95384.0,95368.0,0.21406708]
[1768771519877,0.02508033,95383.0,95368.0,0.21406708]
[1768771520078,0.02508033,95382.0,95368.0,0.21406708]
[1768771520279,0.04382831,95384.0,95368.0,0.21406708]
[1768771520479,0.02508022,95383.0,95368.0,0.21406708]
[1768771520679,0.02508022,95382.0,95368.0,0.21406708]
[1768771520878,0.00230647,95384.0,95368.0,0.21406708]
[1768771521179,0.0250799,95383.0,95368.0,0.21406708]
[1768771521379,0.0250799,95382.0,95368.0,0.21406708]
[1768771521678,0.04372322,95384.0,95368.0,0.21406708]
[1768771521874,0.02507966,95383.0,95368.0,0.21406708]
[1768771522095,0.02507966,95382.0,95368.0,0.21406708]
[1768771522280,0.04344705,95384.0,95368.0,0.21406708]
[1768771522579,0.02507956,95383.0,95368.0,0.21406708]
[1768771522781,0.02507956,95382.0,95368.0,0.21406708]
[1768771523088,0.04452925,95384.0,95368.0,0.21406708]
[1768771523389,0.02507744,95383.0,95368.0,0.21406708]
[1768771523589,0.02507744,95382.0,95368.0,0.21406708]
[1768771523789,0.0441377,95384.0,95368.0,0.21406708]
[1768771524091,0.02507738,95383.0,95369.0,0.09834412]
[1768771524294,0.02507738,95382.0,95369.0,0.21321987]
[1768771524594,0.00230647,95384.0,95369.0,0.21321987]
[1768771524791,0.02507754,95383.0,95369.0,0.11487575]
[1768771524991,0.02507754,95382.0,95369.0,0.11487575]
[1768771525289,0.0441377,95384.0,95369.0,0.11487575]
[1768771525490,0.02507788,95383.0,95369.0,0.11487575]
[1768771525694,0.02507788,95382.0,95369.0,0.11487575]
[1768771525989,0.04380451,95384.0,95369.0,0.11487575]
[1768771526193,0.0944,95381.0,95369.0,0.11487575]
[1768771530994,0.10465005,95379.0,95369.0,0.11487575]
[1768771535701,0.0944,95378.0,95369.0,0.11487575]
[1768771540303,0.0944,95378.0,95367.0,0.09834412]
[1768771540712,0.10465005,95377.0,95367.0,0.09834412]
[1768771541102,0.10465005,95377.0,95367.0,0.2093568]
[1768771544209,0.0944,95376.0,95367.0,0.2093568]
[1768771560626,0.0944,95376.0,95368.0,0.11487275]
[1768771571330,0.0944,95376.0,95364.0,0.11487275]
[1768771572833,0.10465005,95374.0,95364.0,0.11487275]
[1768771573035,0.10465005,95374.0,95364.0,0.11356575]
[1768771573624,0.10465005,95374.0,95364.0,0.11225875]
[1768771576334,0.0944,95373.0,95364.0,0.11225875]
[1768771576833,0.0944,95373.0,95365.0,0.11487275]
[1768771611973,0.0944,95373.0,95364.0,0.09017652]
[1768771631788,0.0944,95373.0,95361.0,0.11158947]
[1768771636689,0.0944,95373.0,95354.0,0.10845515]
[1768771636894,0.13529179,95373.0,95350.0,0.01295909]
[1768771637095,0.13529179,95373.0,95350.0,0.10926547]
[1768771638195,0.13513688,95373.0,95350.0,0.10926547]
[1768771638698,0.0944,95373.0,95350.0,0.10926547]
[1768771638895,0.0944,95373.0,95351.0,0.10845515]
[1768771639195,0.13513688,95373.0,95352.0,0.10845515]
[1768771640299,0.1358175,95373.0,95352.0,0.10845515]
[1768771640500,0.1358175,95373.0,95353.0,0.10845515]
[1768771641498,0.13662415,95373.0,95353.0,0.10845515]
[1768771642097,0.0944,95373.0,95353.0,0.10845515]
[1768771642400,0.13662415,95373.0,95353.0,0.10845515]
[1768771642600,0.13529611,95373.0,95353.0,0.10845515]
[1768771643096,0.0944,95373.0,95353.0,0.10845515]
[1768771643302,0.13529611,95373.0,95353.0,0.10845515]
[1768771644097,0.09145106,95372.0,95350.0,0.01295909]
[1768771645003,0.13266768,95372.0,95350.0,0.01295909]
[1768771645996,0.09145106,95371.0,95350.0,0.01295909]
[1768771647004,0.09145106,95371.0,95350.0,0.12608202]
[1768771647205,0.13338765,95371.0,95350.0,0.12608202]
[1768771647603,0.09145106,95371.0,95350.0,0.12608202]
[1768771648506,0.13338765,95371.0,95350.0,0.12608202]
[1768771650209,0.13356912,95371.0,95350.0,0.12608202]
[1768771650608,0.09145106,95371.0,95350.0,0.12608202]
[1768771651111,0.13356912,95371.0,95350.0,0.12608202]
[1768771651800,0.13354525,95371.0,95350.0,0.12608202]
[1768771652107,0.01049,95357.0,95350.0,0.12608202]
[1768771653908,0.01049,95356.0,95350.0,0.12608202]
[1768771654410,0.09444,95367.0,95350.0,0.12608202]
[1768771654411,0.01049,95357.0,95350.0,0.12608202]
[1768771654811,0.01049,95359.0,95350.0,0.12608202]
[1768771655212,0.01049,95358.0,95350.0,0.12608202]
[1768771655613,0.01049,95357.0,95350.0,0.12608202]
[1768771656411,0.01049,95356.0,95350.0,0.12608202]
[1768771658815,0.1046744,95360.0,95350.0,0.12608202]
[1768771659116,0.1046744,95360.0,95351.0,0.11474849]
[1768771660016,0.01049,95356.0,95351.0,0.11474849]
[1768771660215,0.01049,95356.0,95351.0,0.21259963]
[1768771661610,0.01049,95355.0,95351.0,0.21259963]
[1768771661817,0.01049,95358.0,95352.0,0.09785114]
[1768771662011,0.1046744,95360.0,95352.0,0.09785114]
[1768771662012,0.01049,95356.0,95352.0,0.09785114]
[1768771662212,0.01049,95357.0,95353.0,0.09785114]
[1768771662608,0.01049,95356.0,95353.0,0.09785114]
[1768771662805,0.1046744,95360.0,95353.0,0.09785114]
[1768771664512,7.436e-05,95359.0,95343.0,0.11307666]
[1768771664719,0.1046744,95353.0,95339.0,0.09785114]
[1768771664913,0.1046744,95350.0,95339.0,0.09785114]
[1768771665120,0.04228708,95359.0,95339.0,0.09785114]
[1768771665316,0.1046744,95350.0,95339.0,0.09785114]
[1768771665518,0.04228708,95359.0,95339.0,0.09785114]
[1768771665821,7.436e-05,95359.0,95339.0,0.09785114]
[1768771666621,7.436e-05,95359.0,95340.0,0.11474849]
[1768771666921,7.436e-05,95359.0,95341.0,0.21259963]
[1768771667126,7.436e-05,95359.0,95342.0,0.11474849]
[1768771667822,7.436e-05,95359.0,95342.0,0.12713173]
[1768771668320,7.436e-05,95359.0,95342.0,0.22498287]
[1768771668515,0.010491,95352.0,95343.0,0.11474849]
[1768771670624,0.1046744,95353.0,95343.0,0.11474849]
[1768771671123,0.010491,95352.0,95343.0,0.11474849]
[1768771673027,0.01049,95356.0,95343.0,0.11474849]
[1768771673529,0.010491,95351.0,95343.0,0.11474849]
[1768771675231,0.010491,95352.0,95343.0,0.20868886]
[1768771675431,0.010491,95351.0,95345.0,0.11111246]
[1768771676527,7.436e-05,95359.0,95345.0,0.11111246]
[1768771678131,7.436e-05,95359.0,95345.0,0.20505283]
[1768771678333,7.436e-05,95359.0,95346.0,0.11111246]
[1768771681434,0.09444,95358.0,95346.0,0.11111246]
[1768771682034,0.09444,95358.0,95346.0,0.20505283]
[1768771682234,0.09444,95358.0,95347.0,0.11111246]
[1768771689938,0.1046744,95357.0,95347.0,0.11111246]
[1768771691141,0.010491,95353.0,95347.0,0.11111246]
[1768771693837,0.1046744,95357.0,95347.0,0.11111246]
[1768771694042,0.01049,95354.0,95347.0,0.11111246]
[1768771694542,0.010491,95353.0,95347.0,0.11111246]
[1768771696238,0.1046744,95357.0,95346.0,0.09394037]
[1768771696435,0.1046744,95357.0,95343.0,0.11111246]
[1768771696633,0.1046744,95352.0,95344.0,0.11111246]
[1768771696829,0.1046744,95354.0,95344.0,0.11111246]
[1768771697229,0.010491,95351.0,95344.0,0.11111246]
[1768771699546,0.010491,95350.0,95344.0,0.11111246]
[1768771699745,0.1046744,95354.0,95342.0,0.01238324]
[1768771699942,0.010492,95344.0,95338.0,0.09394037]
[1768771700242,0.010492,95343.0,95338.0,0.09394037]
[1768771701039,0.010492,95341.0,95331.0,0.09394037]
[1768771701238,0.1046744,95341.0,95331.0,0.10556534]
[1768771701443,0.010491,95346.0,95331.0,0.10556534]
[1768771701748,0.1046744,95341.0,95331.0,0.10556534]
[1768771701947,0.1151664,95341.0,95332.0,0.11111246]
[1768771702253,0.010491,95346.0,95334.0,0.11111246]
[1768771702640,0.010491,95346.0,95334.0,0.2018988]
[1768771702842,0.010492,95342.0,95335.0,0.11607849]
[1768771703148,0.010491,95346.0,95335.0,0.11607849]
[1768771704536,0.010491,95348.0,95335.0,0.11607849]
[1768771704748,0.010492,95341.0,95335.0,0.11607849]
[1768771705847,0.010492,95341.0,95335.0,0.20686483]
[1768771706046,0.010492,95341.0,95336.0,0.11607849]
[1768771706346,0.010492,95343.0,95337.0,0.09078634]
[1768771710145,0.010491,95349.0,95337.0,0.09078634]
[1768771710146,0.010492,95342.0,95337.0,0.09078634]
[1768771710352,0.010491,95345.0,95337.0,0.09078634]
[1768771710752,0.010492,95343.0,95337.0,0.20686483]
[1768771713153,0.010492,95342.0,95338.0,0.09078634]
[1768771713754,0.010492,95343.0,95338.0,0.09078634]
[1768771714555,0.010491,95349.0,95338.0,0.20686483]
[1768771715053,0.08928703,95357.0,95338.0,0.20686483]
[1768771715054,0.010491,95346.0,95338.0,0.20686483]
[1768771716445,0.010491,95345.0,95338.0,0.20686483]
[1768771716650,0.010491,95347.0,95340.0,0.11607849]
[1768771716850,0.010491,95351.0,95342.0,0.11607849]
[1768771717056,0.09444,95350.0,95342.0,0.11607849]
[1768771720648,0.09444,95350.0,95336.0,0.11066049]
[1768771720954,0.09444,95350.0,95338.0,0.11066049]
[1768771721451,0.09444,95350.0,95339.0,0.09858753]
[1768771721756,0.09444,95350.0,95340.0,0.11066049]
[1768771730663,0.13563034,95350.0,95339.0,0.09858753]
[1768771731362,0.09444,95350.0,95339.0,0.09858753]
[1768771744271,7.436e-05,95359.0,95340.0,0.11960084]
[1768771744471,0.11963364,95358.0,95344.0,0.11960084]
[1768771744671,0.09444,95358.0,95346.0,0.09093134]
[1768771744867,7.436e-05,95359.0,95347.0,0.11960084]
[1768771745067,0.09444,95358.0,95351.0,0.11960084]
[1768771746280,0.09444,95358.0,95350.0,0.09093134]
[1768771747477,0.09444,95358.0,95350.0,0.21053218]
[1768771747677,7.436e-05,95359.0,95350.0,0.21053218]
[1768771747678,0.09444,95361.0,95354.0,0.11960084]
[1768771747868,0.09444,95363.0,95342.0,0.09093134]
[1768771748073,0.09444,95363.0,95346.0,0.21053218]
[1768771755886,0.09444,95363.0,95348.0,0.11960084]
[1768771771086,0.09444,95362.0,95348.0,0.11960084]
[1768771776899,0.1046832,95360.0,95348.0,0.11960084]
[1768771780500,0.09444,95362.0,95348.0,0.11960084]
[1768771780701,0.1046832,95360.0,95348.0,0.11960084]
[1768771783104,0.09444,95362.0,95348.0,0.11960084]
[1768771783303,0.1046832,95360.0,95343.0,0.11294792]
[1768771783802,0.1046832,95360.0,95345.0,0.11294792]
[1768771785603,0.0604832,95360.0,95345.0,0.11294792]
[1768771799513,0.09444,95361.0,95345.0,0.20847949]
[1768771799816,0.1046832,95360.0,95346.0,0.11480143]
[1768771800512,0.1046832,95360.0,95346.0,0.210333]
[1768771800698,0.1046832,95360.0,95347.0,0.11480143]
[1768771800903,0.1046832,95360.0,95350.0,0.11480143]
[1768771801609,0.09444,95361.0,95350.0,0.11480143]
[1768771801610,0.00230684,95369.0,95353.0,0.210333]
[1768771801804,0.00230684,95369.0,95340.0,0.1046832]
[1768771801805,0.09444,95377.0,95364.0,0.11480143]
[1768771802006,0.09444,95376.0,95366.0,0.09553157]
[1768771802205,0.09444,95376.0,95366.0,0.210333]
[1768771802404,0.09444,95376.0,95367.0,0.210333]
[1768771803815,0.09444,95376.0,95363.0,0.11480143]
[1768771806227,0.09444,95376.0,86039.0,0.07049096]
[1768771806228,0.21834222,95373.0,95356.0,0.09553157]
[1768771806524,0.1046832,95370.0,95353.0,0.210333]
[1768771806702,0.1046832,95370.0,95354.0,0.210333]
[1768771809914,0.09444,95376.0,95359.0,0.210333]
[1768771810113,0.1046832,95370.0,95359.0,0.210333]
[1768771810317,0.09444,95376.0,95359.0,0.210333]
[1768771810518,0.1046832,95370.0,95359.0,0.210333]
[1768771811416,0.1046832,95370.0,95359.0,0.09553157]
[1768771811915,0.09444,95376.0,95359.0,0.09553157]
[1768771812218,0.09444,95376.0,95360.0,0.3150162]
[1768771812424,0.09444,95376.0,95363.0,0.210333]
[1768771815924,0.00230636,95389.0,95369.0,0.210333]
[1768771816217,0.00230636,95389.0,95372.0,0.210333]
[1768771816419,0.00230636,95389.0,95374.0,0.210333]